bitfinex/quotes_BTCUSD_20250610
["timestamp","ask_amount","ask_price","bid_price","bid_amount"]
[1749585751168,0.34,109310.0,109300.0,0.05302371]
[1749585751375,0.34,109310.0,109300.0,0.03597846]
[1749585751635,0.34,109310.0,109300.0,0.05941351]
[1749585751849,0.34,109320.0,109310.0,0.0318]
[1749585752077,0.34,109320.0,109310.0,0.05523465]
[1749585752310,0.34,109320.0,109310.0,0.05523437]
[1749585752529,0.34,109320.0,109310.0,0.03819119]
[1749585752737,0.34,109320.0,109310.0,0.05524251]
[1749585752973,0.34,109320.0,109310.0,0.05524535]
[1749585753202,0.001,109320.0,109310.0,0.0318]
[1749585753418,0.341,109320.0,109310.0,0.25524465]
[1749585754510,0.341,109320.0,109310.0,0.25524444]
[1749585754927,0.342,109320.0,109310.0,0.25524444]
[1749585755340,0.342,109320.0,109310.0,0.3616468]
[1749585755806,0.342,109320.0,109310.0,0.34459614]
[1749585756014,0.342,109320.0,109310.0,0.36165265]
[1749585756238,0.342,109320.0,109310.0,0.36165299]
[1749585756902,0.002,109320.0,109310.0,0.36165299]
[1749585757541,0.002,109320.0,109310.0,0.35525672]
[1749585757757,0.002,109320.0,109310.0,0.3382]
[1749585757965,0.002,109320.0,109310.0,0.34459807]
[1749585758170,0.002,109320.0,109310.0,0.35526152]
[1749585758380,0.002,109320.0,109310.0,0.36165963]
[1749585758816,0.001,109320.0,109310.0,0.35526156]
[1749585759026,0.001,109320.0,109310.0,0.35626156]
[1749585759280,0.46094085,109340.0,109320.0,0.0318]
[1749585759496,0.55229425,109340.0,109320.0,0.05528292]
[1749585759708,0.57969756,109340.0,109320.0,0.0318]
[1749585760153,0.57969756,109340.0,109320.0,0.05528266]
[1749585760576,0.58069756,109340.0,109320.0,0.05528262]
[1749585760789,0.58069756,109340.0,109320.0,0.03988262]
[1749585760999,0.58069756,109340.0,109320.0,0.03988577]
[1749585761222,0.001,109340.0,109330.0,0.0314]
[1749585761441,0.001,109340.0,109330.0,0.2548851]
[1749585761655,0.001,109340.0,109330.0,0.24847863]
[1749585761883,0.002,109340.0,109330.0,0.25488231]
[1749585762096,0.001,109340.0,109330.0,0.25488231]
[1749585762313,0.002,109350.0,109330.0,0.25488231]
[1749585762530,0.002,109350.0,109330.0,0.25488196]
[1749585762742,0.002,109340.0,109330.0,0.25488174]
[1749585762968,0.004,109340.0,109330.0,0.92860536]
[1749585763235,0.002,109340.0,109330.0,0.93500871]
[1749585763462,0.002,109350.0,109340.0,0.0321]
[1749585763686,0.002,109350.0,109340.0,0.16192531]
[1749585763904,0.002,109350.0,109340.0,0.16192516]
[1749585764121,0.002,109350.0,109340.0,0.25327856]
[1749585764335,0.002,109350.0,109340.0,0.79358772]
[1749585764543,0.002,109350.0,109340.0,0.99998627]
[1749585764758,0.002,109370.0,109360.0,0.2321]
[1749585764966,0.002,109370.0,109360.0,0.2555604]
[1749585765182,0.002,109370.0,109360.0,0.23849855]
[1749585765391,0.002,109370.0,109360.0,0.25555985]
[1749585766032,0.004,109370.0,109360.0,0.25555985]
[1749585766238,0.004,109370.0,109360.0,0.24916171]
[1749585766450,0.004,109370.0,109360.0,0.23848714]
[1749585766665,0.004,109370.0,109360.0,0.2321]
[1749585766892,0.36054085,109370.0,109360.0,0.01703254]
[1749585767111,0.46739425,109370.0,109360.0,0.02342142]
[1749585767324,0.46739425,109370.0,109360.0,0.02342262]
[1749585767970,0.45189425,109370.0,109360.0,0.02342262]
[1749585768186,0.45189425,109370.0,109360.0,0.01703463]
[1749585768398,0.45189425,109370.0,109360.0,0.00638611]
[1749585769442,0.45189425,109370.0,109360.0,0.0063835]
[1749585769650,0.45189425,109370.0,109350.0,0.0329]
[1749585770521,0.44989425,109370.0,109350.0,0.03928348]
[1749585770776,0.44989425,109370.0,109350.0,0.03928344]
[1749585770990,0.44989425,109370.0,109350.0,0.03928348]
[1749585771200,0.44989425,109370.0,109350.0,0.0166]
[1749585771416,0.44789425,109370.0,109350.0,0.0166]
[1749585771644,0.44789425,109370.0,109350.0,0.02298348]
[1749585771865,0.48249425,109370.0,109350.0,0.00638296]
[1749585772135,0.48249425,109370.0,109350.0,0.0063832]
[1749585772339,0.10589425,109360.0,109350.0,0.0063832]
[1749585772556,0.44589425,109360.0,109350.0,0.0063832]
[1749585772772,0.34,109350.0,109340.0,0.21677846]
[1749585773231,0.34,109350.0,109340.0,0.02316157]
[1749585773486,0.34,109350.0,109340.0,0.02316158]
[1749585773735,0.34,109350.0,109340.0,0.03380016]
[1749585773965,0.10589425,109360.0,109340.0,0.0401833]
[1749585774181,0.10689425,109360.0,109340.0,0.0401833]
[1749585774606,0.10689425,109360.0,109340.0,0.04018329]
[1749585774831,0.10689425,109360.0,109340.0,0.03380015]
[1749585775041,0.10689425,109360.0,109340.0,0.02316312]
[1749585775262,0.12209425,109360.0,109340.0,0.00047846]
[1749585775488,0.13699425,109360.0,109340.0,0.02388923]
[1749585775703,0.12109425,109360.0,109340.0,0.02488923]
[1749585776137,0.10589425,109360.0,109340.0,0.03998923]
[1749585776348,0.10589425,109360.0,109340.0,0.0399947]
[1749585776565,0.10589425,109360.0,109340.0,0.03460995]
[1749585776787,0.10589425,109360.0,109340.0,0.05020992]
[1749585777005,0.10589425,109360.0,109340.0,0.05659672]
[1749585777900,0.10589425,109360.0,109340.0,0.05660083]
[1749585778165,0.01454085,109360.0,109340.0,0.05660235]
[1749585778393,0.48044,109370.0,109340.0,0.23956672]
[1749585778634,0.002,109350.0,109340.0,0.00638825]
[1749585778848,0.002,109350.0,109320.0,0.5900164]
[1749585779063,0.002,109350.0,109330.0,0.0913534]
[1749585779730,0.002,109350.0,109340.0,0.001]
[1749585780153,0.002,109350.0,109330.0,0.0913534]
[1749585780374,0.002,109350.0,109330.0,0.0933534]
[1749585781077,0.002,109350.0,109330.0,0.65712772]
[1749585781502,0.002,109350.0,109340.0,0.025]
[1749585781721,0.002,109350.0,109340.0,0.1472534]
[1749585783016,0.002,109350.0,109340.0,0.0155]
[1749585783466,0.002,109350.0,109340.0,0.032]
[1749585785071,0.002,109350.0,109340.0,0.0155]
[1749585786139,0.002,109350.0,109330.0,0.0325]
[1749585786373,0.002,109350.0,109330.0,0.016]
[1749585786583,0.017,109350.0,109320.0,0.43264544]
[1749585786799,0.017,109350.0,109320.0,0.12399884]
[1749585787017,0.015,109340.0,109320.0,0.00014544]
[1749585787449,0.03,109340.0,109320.0,0.00014544]
[1749585788283,0.015,109340.0,109320.0,0.00014544]
[1749585788490,0.015,109340.0,109330.0,0.002]
[1749585789532,0.02043057,109340.0,109330.0,0.002]
[1749585789748,0.04997142,109340.0,109330.0,0.002]
[1749585790602,0.04997142,109340.0,109330.0,0.00840276]
[1749585790865,0.04997142,109340.0,109330.0,0.00840605]
[1749585791089,0.04997142,109340.0,109330.0,0.002]
[1749585791326,0.04997142,109340.0,109330.0,0.00840618]
[1749585791538,0.04997142,109340.0,109330.0,0.00840622]
[1749585791952,0.04997142,109340.0,109330.0,0.004]
[1749585792385,0.00543057,109340.0,109330.0,0.01040512]
[1749585792666,0.00543057,109340.0,109330.0,0.004]
[1749585792881,0.5548334,109350.0,109330.0,0.01040495]
[1749585793093,0.3572,109350.0,109330.0,0.004]
[1749585793305,0.45360075,109350.0,109330.0,0.01040384]
[1749585793514,0.46880075,109350.0,109330.0,0.01040383]
[1749585793730,0.46880075,109350.0,109330.0,0.02107688]
[1749585793953,0.46876075,109350.0,109330.0,0.02748069]
[1749585794172,0.36252075,109350.0,109330.0,0.02748069]
[1749585794422,0.34732075,109350.0,109340.0,0.0158]
[1749585794668,0.34732075,109350.0,109340.0,0.0324]
[1749585794873,0.34732075,109350.0,109340.0,0.05587787]
[1749585795080,0.00732075,109350.0,109340.0,0.05587788]
[1749585795298,0.002,109350.0,109340.0,0.05587788]
[1749585795720,0.002,109350.0,109340.0,0.05587846]
[1749585795943,0.002,109350.0,109340.0,0.05587826]
[1749585796162,0.002,109350.0,109340.0,0.0324]
[1749585796596,0.002,109350.0,109340.0,0.06136994]
[1749585797663,0.002,109350.0,109340.0,0.06136869]
[1749585797883,0.002,109350.0,109340.0,0.04428327]
[1749585798100,0.002,109350.0,109340.0,0.05589238]
[1749585798320,0.002,109350.0,109340.0,0.0558929]
[1749585798779,0.002,109350.0,109340.0,0.0324]
[1749585798989,0.002,109350.0,109340.0,0.03880756]
[1749585799203,0.002,109350.0,109340.0,0.0324]
[1749585799421,0.002,109350.0,109330.0,0.1079534]
[1749585799624,0.002,109350.0,109330.0,0.1230534]
[1749585799847,0.002,109350.0,109330.0,0.12946115]
[1749585800056,0.002,109350.0,109330.0,0.1230534]
[1749585800308,0.002,109350.0,109330.0,0.12946117]
[1749585800516,0.002,109350.0,109330.0,0.12946119]
[1749585800731,0.002,109350.0,109330.0,0.1294612]
[1749585800959,0.002,109350.0,109330.0,0.13491419]
[1749585801162,0.002,109350.0,109330.0,0.13691425]
[1749585801372,0.002,109350.0,109330.0,0.13050639]
[1749585801588,0.002,109350.0,109330.0,0.13691427]
[1749585801796,0.002,109350.0,109330.0,0.1250534]
[1749585802214,0.002,109350.0,109330.0,0.13146128]
[1749585802437,0.002,109350.0,109330.0,0.13346128]
[1749585802886,0.002,109350.0,109330.0,0.13346099]
[1749585803351,0.002,109350.0,109330.0,0.1270534]
[1749585803585,0.002,109350.0,109330.0,0.13346099]
[1749585804786,0.002,109350.0,109330.0,0.1270534]
[1749585805025,0.002,109350.0,109330.0,0.13346143]
[1749585805240,0.002,109350.0,109330.0,0.1270534]
[1749585805694,0.002,109350.0,109330.0,0.13346142]
[1749585806116,0.002,109350.0,109330.0,0.13346074]
[1749585807176,0.002,109350.0,109330.0,0.15054698]
[1749585807380,0.002,109350.0,109330.0,0.13346074]
[1749585807595,0.002,109350.0,109330.0,0.150547]
[1749585807808,0.002,109350.0,109330.0,0.1505468]
[1749585808073,0.002,109350.0,109340.0,0.032]
[1749585808251,0.002,109350.0,109340.0,0.05549209]
[1749585808467,0.002,109350.0,109340.0,0.05549183]
[1749585808884,0.002,109350.0,109340.0,0.05549182]
[1749585810183,0.002,109350.0,109340.0,0.05549278]
[1749585810392,0.002,109350.0,109340.0,0.05913046]
[1749585810619,0.002,109350.0,109340.0,0.18189097]
[1749585810830,0.002,109350.0,109340.0,0.17548386]
[1749585811047,0.002,109350.0,109340.0,0.19897328]
[1749585811684,0.002,109350.0,109340.0,0.17548386]
[1749585811918,0.002,109350.0,109340.0,0.19256708]
[1749585812126,0.002,109350.0,109340.0,0.18189006]
[1749585813625,0.002,109350.0,109340.0,0.17548386]
[1749585814063,0.002,109350.0,109340.0,0.14988988]
[1749585814896,0.002,109350.0,109340.0,0.14988979]
[1749585815318,0.002,109350.0,109340.0,0.14988978]
[1749585815782,0.002,109350.0,109340.0,0.16498978]
[1749585816832,0.002,109350.0,109340.0,0.45038386]
[1749585817084,0.002,109350.0,109340.0,0.45678978]
[1749585817287,0.002,109350.0,109340.0,0.45678977]
[1749585817496,0.002,109350.0,109340.0,0.47258977]
[1749585817703,0.002,109350.0,109340.0,0.46618386]
[1749585817933,0.002,109350.0,109340.0,0.47258968]
[1749585818145,0.002,109350.0,109340.0,0.47259058]
[1749585818371,0.002,109350.0,109340.0,0.47259043]
[1749585818584,0.002,109350.0,109340.0,0.46618386]
[1749585819010,0.002,109350.0,109340.0,0.47259043]
[1749585819224,0.002,109350.0,109340.0,0.46618386]
[1749585819430,0.002,109350.0,109340.0,0.47259043]
[1749585820098,0.002,109350.0,109340.0,0.18079294]
[1749585820312,0.002,109350.0,109340.0,0.03140908]
[1749585820523,0.002,109350.0,109340.0,0.025]
[1749585820952,0.002,109350.0,109340.0,0.03140962]
[1749585821157,0.002,109350.0,109340.0,0.0314096]
[1749585821367,0.002,109350.0,109340.0,0.03140959]
[1749585821582,0.002,109350.0,109340.0,0.03140961]
[1749585821808,0.002,109350.0,109340.0,0.03141959]
[1749585822238,0.002,109350.0,109340.0,0.025]
[1749585822451,0.002,109350.0,109340.0,0.0314196]
[1749585822669,0.002,109350.0,109340.0,0.025]
[1749585823118,0.002,109350.0,109340.0,0.76900674]
[1749585823664,0.002,109350.0,109340.0,0.96900674]
[1749585823980,0.002,109350.0,109340.0,0.99672622]
[1749585824204,0.002,109370.0,109360.0,0.84545334]
[1749585824456,0.002,109370.0,109360.0,1.07508674]
[1749585824671,0.002,109370.0,109360.0,1.3739875]
[1749585824898,0.002,109370.0,109360.0,1.17281732]
[1749585825115,7.444e-05,109370.0,109360.0,1.17281732]
[1749585825333,7.444e-05,109370.0,109360.0,1.11586501]
[1749585825545,0.00055299,109370.0,109360.0,1.24336149]
[1749585825779,0.002,109390.0,109380.0,0.025]
[1749585825999,0.002,109390.0,109380.0,0.1229162]
[1749585826668,0.002,109390.0,109380.0,0.13239884]
[1749585827080,0.002,109390.0,109380.0,0.13439884]
[1749585827541,0.002,109390.0,109380.0,0.11849884]
[1749585827764,0.017,109390.0,109380.0,0.00414544]
[1749585827976,0.0324,109390.0,109380.0,0.00414544]
[1749585828882,0.04694085,109390.0,109380.0,0.00414544]
[1749585829101,0.47829425,109390.0,109380.0,0.00414544]
[1749585829534,0.47829425,109390.0,109380.0,0.00214544]
[1749585829768,0.47829425,109390.0,109380.0,0.00014544]
[1749585834526,0.58425425,109390.0,109380.0,0.00014544]
[1749585834945,0.61168025,109390.0,109380.0,0.00014544]
[1749585835392,0.62082126,109390.0,109380.0,0.00014544]
[1749585835603,0.61168025,109390.0,109380.0,0.00014544]
[1749585836055,0.6208211,109390.0,109380.0,0.00014544]
[1749585836475,0.61168025,109390.0,109380.0,0.00014544]
[1749585836707,0.61568025,109390.0,109380.0,0.00014544]
[1749585837358,0.64760025,109390.0,109380.0,0.00014544]
[1749585838654,0.64760025,109390.0,109380.0,0.01720526]
[1749585839054,0.65674118,109390.0,109380.0,0.00014544]
[1749585839288,0.64760025,109390.0,109380.0,0.01720526]
[1749585839499,0.64760025,109390.0,109380.0,0.01720537]
[1749585839705,0.64760025,109390.0,109380.0,0.00014544]
[1749585839911,0.64760025,109390.0,109380.0,0.01720397]
[1749585840982,0.64760025,109390.0,109380.0,0.01720398]
[1749585841208,0.64760025,109390.0,109380.0,0.00014544]
[1749585841434,0.65674126,109390.0,109380.0,0.00014544]
[1749585841655,0.66588244,109390.0,109380.0,0.01720503]
[1749585841876,0.66588236,109390.0,109380.0,0.01720504]
[1749585842307,0.65674118,109390.0,109380.0,0.01720504]
[1749585842769,0.66588228,109390.0,109380.0,0.0172048]
[1749585842996,0.83043231,109390.0,109350.0,0.07273058]
[1749585843469,0.04684085,109360.0,109350.0,0.00047855]
[1749585843695,0.58411425,109360.0,109350.0,0.00047855]
[1749585844188,0.61154825,109360.0,109350.0,0.00047855]
[1749585844409,0.63901728,109360.0,109350.0,0.00047855]
[1749585844665,0.63901728,109360.0,109350.0,0.00347855]
[1749585845108,0.63901728,109360.0,109350.0,0.00047855]
[1749585845315,0.63901728,109360.0,109350.0,0.00347855]
[1749585845517,0.63901728,109360.0,109350.0,0.00147855]
[1749585845727,0.63901728,109360.0,109350.0,0.00247855]
[1749585845946,0.67093728,109360.0,109350.0,0.00247855]
[1749585846154,0.67093728,109360.0,109350.0,0.00887094]
[1749585847217,0.53309728,109360.0,109350.0,0.00887094]
[1749585847426,0.67089728,109360.0,109350.0,0.0088685]
[1749585847646,0.54841728,109360.0,109350.0,0.00886848]
[1749585847865,0.34,109360.0,109350.0,0.00247855]
[1749585848076,0.34,109360.0,109350.0,0.03896753]
[1749585848541,0.34,109360.0,109350.0,0.00886753]
[1749585849029,0.34,109360.0,109350.0,0.00247855]
[1749585849256,0.34,109360.0,109350.0,0.00886758]
[1749585849473,0.34,109360.0,109350.0,0.00886749]
[1749585850512,0.34,109360.0,109350.0,0.00886887]
[1749585850721,0.34,109360.0,109350.0,0.00247855]
[1749585850928,0.34,109360.0,109350.0,0.00886891]
[1749585851139,0.34,109360.0,109350.0,0.00886895]
[1749585851802,0.34,109360.0,109350.0,0.00247855]
[1749585852034,0.44584,109360.0,109350.0,0.03946887]
[1749585852459,0.44584,109360.0,109350.0,0.03307855]
[1749585852665,0.44584,109360.0,109350.0,0.03947011]
[1749585852904,0.10584,109360.0,109350.0,0.03947012]
[1749585853117,0.10584,109360.0,109350.0,0.03947005]
[1749585853336,0.10584,109360.0,109350.0,0.0394701]
[1749585853547,0.34,109370.0,109350.0,0.03946838]
[1749585853764,0.44584,109370.0,109350.0,0.03307855]
[1749585854406,0.44584,109370.0,109350.0,0.03846828]
[1749585854656,0.44584,109370.0,109350.0,0.03307855]
[1749585854870,0.44584,109370.0,109350.0,0.02296816]
[1749585855081,0.44584,109370.0,109350.0,0.02396829]
[1749585855734,0.44584,109370.0,109350.0,0.02396841]
[1749585855977,0.44584,109370.0,109350.0,0.01757855]
[1749585856196,0.44584,109370.0,109350.0,0.02396841]
[1749585856400,0.44584,109370.0,109350.0,0.03927774]
[1749585856558,0.44584,109370.0,109350.0,0.03927763]
[1749585856765,0.34,109370.0,109350.0,0.03927763]
[1749585856951,0.1058,109370.0,109360.0,0.0304]
[1749585857154,0.1058,109370.0,109360.0,0.03680025]
[1749585857351,0.1058,109370.0,109360.0,0.03680029]
[1749585857636,0.38196885,109380.0,109360.0,0.03680022]
[1749585857854,0.1058,109370.0,109360.0,0.0304]
[1749585858081,0.1058,109370.0,109360.0,0.0214999]
[1749585858314,0.1068,109370.0,109360.0,0.0214999]
[1749585858564,0.1068,109370.0,109360.0,0.02149992]
[1749585858791,0.1068,109370.0,109360.0,0.0151]
[1749585859511,0.1068,109370.0,109360.0,0.02150035]
[1749585859734,0.1068,109370.0,109360.0,0.02150036]
[1749585860147,0.1068,109370.0,109360.0,0.02150074]
[1749585860354,0.1068,109370.0,109360.0,0.0151]
[1749585863075,0.4468,109370.0,109360.0,0.03217036]
[1749585863306,0.4468,109370.0,109360.0,0.0151]
[1749585863532,0.4468,109370.0,109360.0,0.0161]
[1749585863769,0.4468,109370.0,109360.0,0.03317038]
[1749585863990,0.4458,109370.0,109360.0,0.03317038]
[1749585864214,0.4458,109370.0,109360.0,0.0161]
[1749585864457,1.65423672,109370.0,109360.0,0.01807191]
[1749585864687,1.65423672,109370.0,109360.0,0.001]
[1749585865164,1.65423672,109370.0,109360.0,0.01907191]
[1749585865394,1.67043672,109370.0,109360.0,0.01907191]
[1749585865841,1.67043672,109370.0,109360.0,0.01907407]
[1749585866076,1.65423672,109370.0,109360.0,0.01907407]
[1749585867210,1.65423672,109370.0,109360.0,0.01907331]
[1749585867855,1.65423672,109370.0,109360.0,0.002]
[1749585868068,1.65423672,109370.0,109360.0,0.01907331]
[1749585868297,1.66877757,109370.0,109360.0,0.002]
[1749585868518,1.66877757,109370.0,109360.0,0.0190733]
[1749585869011,1.66877757,109370.0,109360.0,0.002]
[1749585869449,1.66877757,109370.0,109360.0,0.01907484]
[1749585869675,1.66877757,109370.0,109360.0,0.01907483]
[1749585869900,1.66877757,109370.0,109360.0,0.01907482]
[1749585870113,1.66877757,109370.0,109360.0,0.002]
[1749585871142,1.66877757,109370.0,109360.0,0.01907476]
[1749585871357,1.54843672,109370.0,109360.0,0.67000235]
[1749585871568,1.20843672,109370.0,109360.0,1.18635506]
[1749585871774,1.20843672,109370.0,109360.0,1.19188]
[1749585871983,1.54843672,109370.0,109360.0,1.19188]
[1749585872193,1.20843672,109370.0,109360.0,1.19185503]
[1749585872393,1.20843672,109370.0,109360.0,0.57152736]
[1749585872600,1.54843672,109370.0,109360.0,0.76722775]
[1749585872806,1.54843672,109370.0,109360.0,0.66154784]
[1749585873014,1.54843672,109370.0,109360.0,0.66454851]
[1749585873218,1.54843672,109370.0,109360.0,0.66454862]
[1749585873424,1.54843672,109370.0,109360.0,0.64649861]
[1749585873635,1.54843672,109370.0,109360.0,0.66554847]
[1749585874240,1.54843672,109370.0,109360.0,0.64849861]
[1749585879184,1.54843672,109370.0,109360.0,0.21797367]
[1749585879396,1.54843672,109370.0,109360.0,0.20247367]
[1749585879621,1.65403672,109370.0,109360.0,0.0963534]
[1749585879834,1.67063672,109370.0,109360.0,0.07784486]
[1749585880463,1.67063672,109370.0,109360.0,0.07484486]
[1749585880899,1.67063672,109370.0,109360.0,0.07284486]
[1749585881110,1.65403672,109370.0,109360.0,0.07284486]
[1749585881577,1.65403672,109370.0,109350.0,0.09149882]
[1749585881819,1.65403672,109370.0,109360.0,0.001]
[1749585882041,1.65403672,109370.0,109360.0,0.07386574]
[1749585882458,1.65403672,109370.0,109360.0,0.07286574]
[1749585882699,1.54843672,109370.0,109350.0,0.21385222]
[1749585882912,1.65403672,109370.0,109350.0,0.21385222]
[1749585883123,1.65403672,109370.0,109360.0,0.09102027]
[1749585883541,1.65403672,109370.0,109360.0,0.10809385]
[1749585883745,1.65403672,109370.0,109360.0,0.10809418]
[1749585883950,1.54843672,109370.0,109360.0,0.43044758]
[1749585884169,1.54843672,109370.0,109360.0,0.21337367]
[1749585884379,1.54843672,109370.0,109360.0,0.23044691]
[1749585884587,1.54843672,109370.0,109360.0,0.23044713]
[1749585885220,1.54843672,109370.0,109360.0,0.23144713]
[1749585885630,1.54843672,109370.0,109360.0,0.21634713]
[1749585885842,1.54843672,109370.0,109360.0,0.10909735]
[1749585886046,1.56353672,109370.0,109360.0,0.07389454]
[1749585886265,1.56353672,109370.0,109360.0,0.09097256]
[1749585886468,1.56353672,109370.0,109360.0,0.09097257]
[1749585886675,1.56353672,109370.0,109360.0,0.09097258]
[1749585887291,1.56353672,109370.0,109360.0,0.07389454]
[1749585887935,1.66909672,109370.0,109360.0,0.09097711]
[1749585888378,1.69883757,109370.0,109360.0,0.09097712]
[1749585888597,1.69883757,109370.0,109360.0,0.09097718]
[1749585888817,1.79019097,109370.0,109360.0,0.01808264]
[1749585889449,1.79019097,109370.0,109360.0,0.01808246]
[1749585889659,1.79019097,109370.0,109360.0,0.01808248]
[1749585889866,1.79019097,109370.0,109360.0,0.001]
[1749585890076,1.79019097,109370.0,109360.0,0.01808239]
[1749585890742,1.79019097,109370.0,109360.0,0.02447787]
[1749585890964,1.79019097,109370.0,109360.0,0.02447793]
[1749585891169,1.79019097,109370.0,109360.0,0.02447811]
[1749585891375,1.79019097,109370.0,109360.0,0.02447794]
[1749585891594,1.79019097,109370.0,109360.0,0.02447788]
[1749585891809,1.79019097,109370.0,109360.0,0.01807482]
[1749585892028,1.79019097,109370.0,109360.0,0.02447788]
[1749585892686,1.79019097,109370.0,109360.0,0.02446724]
[1749585892894,1.79019097,109370.0,109360.0,0.02446725]
[1749585893311,1.79019097,109370.0,109360.0,0.02446724]
[1749585894182,1.79019097,109370.0,109360.0,0.00740015]
[1749585894382,1.79019097,109370.0,109360.0,0.02446563]
[1749585894586,1.79019097,109370.0,109360.0,0.02446508]
[1749585894834,1.79019097,109370.0,109360.0,0.02446518]
[1749585895074,1.79019097,109370.0,109360.0,0.001]
[1749585895339,1.79019097,109370.0,109360.0,0.02446527]
[1749585895792,1.79019097,109370.0,109360.0,0.02446359]
[1749585896058,1.79019097,109370.0,109360.0,0.02445913]
[1749585896311,1.79933349,109370.0,109360.0,0.01806119]
[1749585896600,1.79019097,109370.0,109360.0,0.02446137]
[1749585896847,1.79019097,109370.0,109360.0,0.0180627]
[1749585897078,1.80847642,109370.0,109360.0,0.02446141]
[1749585897308,1.79019097,109370.0,109360.0,0.02446152]
[1749585897548,1.79933357,109370.0,109360.0,0.02346152]
[1749585897769,1.79019097,109370.0,109360.0,0.0170627]
[1749585897997,0.371,109360.0,109350.0,0.00047855]
[1749585898225,0.5995134,109360.0,109350.0,0.00047855]
[1749585898455,0.61405425,109360.0,109350.0,0.01753421]
[1749585898699,0.61405425,109360.0,109350.0,0.00047855]
[1749585898924,0.64148532,109360.0,109350.0,0.01753453]
[1749585899149,0.63234138,109360.0,109350.0,0.01753453]
[1749585899385,0.64148573,109360.0,109350.0,0.01853105]
[1749585899626,0.63234171,109360.0,109350.0,0.01853191]
[1749585899865,0.61405425,109360.0,109350.0,0.00147855]
[1749585900094,0.62319769,109360.0,109350.0,0.01853194]
[1749585900328,0.47689425,109360.0,109350.0,0.01853188]
[1749585900604,0.61401425,109360.0,109350.0,0.01753087]
[1749585900824,0.61501425,109360.0,109350.0,0.01753087]
[1749585901033,0.47789425,109360.0,109350.0,0.01753087]
[1749585901241,0.61501425,109360.0,109350.0,0.01753087]
[1749585901725,0.61501425,109360.0,109350.0,0.01752266]
[1749585901936,0.62515777,109360.0,109350.0,0.01752333]
[1749585902146,0.62515769,109360.0,109350.0,0.01753367]
[1749585902362,0.49003769,109360.0,109350.0,0.00047855]
[1749585902613,0.48089425,109360.0,109350.0,0.01753367]
[1749585902825,0.61801425,109360.0,109350.0,0.01753367]
[1749585903037,0.61801425,109360.0,109350.0,0.01752806]
[1749585903253,0.61801425,109360.0,109350.0,0.0175278]
[1749585903463,0.61401425,109360.0,109350.0,0.01752779]
[1749585903674,0.61401425,109360.0,109350.0,0.00047855]
[1749585903894,0.61901425,109360.0,109350.0,0.0175281]
[1749585904110,0.61901425,109360.0,109350.0,0.01754047]
[1749585904353,0.61601425,109360.0,109350.0,0.01754047]
[1749585904566,0.61601425,109360.0,109350.0,0.0175405]
[1749585904787,0.6363012,109360.0,109350.0,0.0175405]
[1749585905003,0.6271576,109360.0,109350.0,0.00047855]
[1749585905213,0.6271576,109360.0,109350.0,0.01754084]
[1749585905424,0.61601425,109360.0,109350.0,0.0175408]
[1749585905627,0.61601425,109360.0,109350.0,0.00047855]
[1749585905837,0.6271576,109360.0,109350.0,0.01754103]
[1749585906052,0.6271576,109360.0,109350.0,0.01754069]
[1749585906265,0.61801425,109360.0,109350.0,0.01754069]
[1749585906498,0.61795024,109360.0,109350.0,0.01754069]
[1749585906930,0.61795024,109360.0,109350.0,0.01753784]
[1749585907141,0.48083024,109360.0,109350.0,0.01753784]
[1749585907350,0.58836939,109360.0,109350.0,0.01753771]
[1749585907564,0.60291024,109360.0,109350.0,0.01753736]
[1749585908081,0.61791024,109360.0,109350.0,0.01753736]
[1749585908578,0.61791024,109360.0,109350.0,0.00047855]
[1749585908820,0.60291024,109360.0,109350.0,0.01753645]
[1749585909075,0.60291024,109360.0,109350.0,0.01753635]
[1749585909366,0.58691024,109360.0,109350.0,0.01753624]
[1749585910228,0.46391684,109360.0,109350.0,0.00047855]
[1749585910475,0.57157024,109360.0,109350.0,0.01753867]
[1749585910700,0.58747024,109360.0,109350.0,0.01753938]
[1749585910910,0.58747024,109360.0,109350.0,0.01754022]
[1749585911118,0.58747024,109360.0,109350.0,0.01754376]
[1749585911546,0.59661359,109360.0,109350.0,0.01754381]
[1749585912066,0.58747024,109360.0,109350.0,0.00047855]
[1749585912297,0.59661359,109360.0,109350.0,0.00047855]
[1749585912537,0.58747024,109360.0,109350.0,0.01754375]
[1749585912771,0.58747024,109360.0,109350.0,0.01754386]
[1749585913007,0.58747024,109360.0,109350.0,0.01754364]
[1749585913246,0.35847684,109360.0,109350.0,0.01754364]
[1749585913472,0.49555684,109360.0,109350.0,0.01754364]
[1749585913703,0.49555684,109360.0,109350.0,0.00047855]
[1749585913938,0.49555684,109360.0,109350.0,0.01754188]
[1749585914463,0.49555684,109360.0,109350.0,0.00047855]
[1749585914715,0.49555684,109360.0,109350.0,0.01754168]
[1749585915503,0.49555684,109360.0,109350.0,0.00047855]
[1749585916006,0.49555684,109360.0,109350.0,0.01755364]
[1749585916265,0.51185684,109360.0,109350.0,0.01755401]
[1749585916508,0.51185684,109360.0,109350.0,0.00047855]
[1749585916749,0.46391684,109360.0,109350.0,0.00047855]
[1749585916989,0.46391684,109360.0,109350.0,0.01755651]
[1749585917235,0.48041684,109360.0,109350.0,0.01755651]
[1749585917457,0.46391684,109360.0,109350.0,0.01756827]
[1749585917904,0.46391684,109360.0,109350.0,0.01756828]
[1749585918142,0.46391684,109360.0,109350.0,0.01756819]
[1749585919032,0.46391684,109360.0,109350.0,0.0175682]
[1749585919479,0.46391684,109360.0,109350.0,0.01756822]
[1749585919986,0.46391684,109360.0,109350.0,0.0175682]
[1749585920212,0.46391684,109360.0,109350.0,0.01757023]
[1749585921102,0.46391684,109360.0,109350.0,0.01757195]
[1749585921317,0.46391684,109360.0,109350.0,0.00047855]
[1749585921553,0.46391684,109360.0,109350.0,0.01757195]
[1749585921992,0.35847684,109360.0,109350.0,0.01757195]
[1749585922213,0.12394085,109360.0,109350.0,0.04837195]
[1749585922640,0.46394085,109360.0,109350.0,0.01587855]
[1749585923091,0.46394085,109360.0,109350.0,0.03297375]
[1749585923300,0.46394085,109360.0,109350.0,0.01587855]
[1749585923526,0.35854085,109360.0,109350.0,0.03297375]
[1749585923736,0.46394085,109360.0,109350.0,0.03297381]
[1749585924173,0.4494,109360.0,109350.0,0.04837381]
[1749585924386,0.4494,109360.0,109350.0,0.03127855]
[1749585924598,0.4494,109360.0,109350.0,0.04837742]